bitfinex-derivatives/quotes_SOLF0:USTF0_20240815
["timestamp","ask_amount","ask_price","bid_price","bid_amount"]
[1723742565009,19.87,144.89,144.88,0.05180058]
[1723742565818,23.3207,144.89,144.88,0.05180058]
[1723742566014,19.87,144.87,144.81,1.2594]
[1723742566414,23.3212,144.87,144.84,3.4517]
[1723742567020,3.4514,144.86,144.84,0.04494438]
[1723742567218,19.87,144.87,144.84,0.04494438]
[1723742567219,19.91395259,144.87,144.84,0.04494438]
[1723742567622,3.4515,144.86,144.84,0.04494438]
[1723742569319,3.4515,144.86,144.84,3.49674438]
[1723742569522,23.36515259,144.87,144.84,3.49674438]
[1723742570224,23.36515259,144.87,144.85,3.4516]
[1723742570425,3.40339614,144.92,144.84,0.04494438]
[1723742570426,5.0,144.93,144.84,0.04494438]
[1723742570612,5.0,144.93,144.84,1.30434438]
[1723742570816,19.87,144.92,144.84,1.2594]
[1723742571219,23.3201,144.92,144.89,3.4505]
[1723742571418,5.0,144.93,144.85,19.87]
[1723742571618,19.87,144.94,144.85,19.87]
[1723742571821,0.05038008,144.92,144.89,0.0516736]
[1723742572126,0.05038008,144.92,144.91,3.4502]
[1723742576924,5.0,144.97,144.96,3.449]
[1723742577132,23.3183,145.0,144.91,6.3595]
[1723742577525,23.3183,145.0,144.96,3.4488]
[1723742577725,23.3183,145.0,144.91,6.3595]
[1723742577926,23.3183,145.0,144.97,3.4486]
[1723742578129,19.87,145.0,144.91,6.3595]
[1723742578325,0.04881046,144.97,144.94,0.04480416]
[1723742578531,0.04881046,144.97,144.96,3.449]
[1723742579026,23.3177,145.02,144.99,3.4482]
[1723742579925,19.87,145.02,145.0,3.4479]
[1723742580132,19.92120097,145.02,145.0,3.4479]
[1723742580331,0.05120097,145.02,144.96,5.0]
[1723742580524,0.05120097,145.02,145.01,3.4478]
[1723742585032,0.05120097,145.02,145.0,0.05153249]
[1723742585338,19.87,145.01,145.0,0.05153249]
[1723742586229,19.92120097,145.02,145.0,3.49933249]
[1723742586835,23.36880097,145.02,145.0,0.05153249]
[1723742587238,19.92120097,145.02,145.0,0.05153249]
[1723742587938,19.92120097,145.02,145.0,3.49943249]
[1723742588234,19.92120097,145.02,145.0,0.05153249]
[1723742589236,19.92120097,145.02,145.01,3.4478]
[1723742589531,0.05120097,145.02,145.01,3.4478]
[1723742590525,19.92120097,145.02,145.0,0.05153249]
[1723742591035,19.92120097,145.02,144.96,1.318]
[1723742591225,19.87,144.99,144.96,1.318]
[1723742591425,19.87,144.99,144.95,1.24]
[1723742591625,19.87,144.97,144.93,3.4496]
[1723742591838,19.87,144.95,144.91,1.2931]
[1723742592028,19.87,144.95,144.94,3.4495]
[1723742592233,19.87,144.95,144.92,0.04526532]
[1723742592438,0.04365966,144.94,144.92,0.04526532]
[1723742593037,19.87,144.93,144.92,0.04526532]
[1723742593432,19.87,144.93,144.92,3.49526532]
[1723742593638,19.87,144.93,144.92,0.04526532]
[1723742594538,23.3197,144.93,144.92,0.04526532]
[1723742595740,3.45,144.92,144.89,3.4506]
[1723742595933,19.87,144.91,144.89,3.4506]
[1723742596136,19.87,144.91,144.88,3.4509]
[1723742596533,19.87,144.91,144.87,1.3124]
[1723742597035,19.87,144.89,144.88,0.04419818]
[1723742598231,19.87,144.89,144.88,3.49509818]
[1723742598436,0.04980633,144.9,144.88,0.04419818]
[1723742598944,0.04980633,144.9,144.89,3.4507]
[1723742599136,19.87,144.95,144.89,1.3483]
[1723742599436,19.87,144.95,144.89,2.5856]
[1723742599649,19.87,144.95,144.93,3.4495]
[1723742599838,24.79,144.97,144.89,2.5856]
[1723742600245,24.79,144.97,144.94,3.4494]
[1723742600446,0.04520336,144.94,144.92,0.0464685]
[1723742600646,19.87,144.97,144.92,0.0464685]
[1723742600940,19.87,144.97,144.94,3.4493]
[1723742600941,0.04823942,144.96,144.94,3.4493]
[1723742602142,19.87,144.95,144.92,0.0464685]
[1723742602343,19.87,144.93,144.92,0.0464685]
[1723742603443,19.87,144.93,144.92,3.4964685]
[1723742603746,19.87,144.95,144.92,0.0464685]
[1723742603945,28.35733942,144.96,144.93,3.4495]
[1723742604642,3.4494,144.95,144.92,3.4963685]
[1723742605254,24.90823942,144.96,144.92,0.0464685]
[1723742605745,28.35723942,144.96,144.93,3.4496]
[1723742606136,24.90823942,144.96,144.92,0.0464685]
[1723742606949,24.90823942,144.96,144.95,3.4492]
[1723742607153,24.90823942,144.96,144.92,0.0464685]
[1723742607349,24.90823942,144.96,144.94,3.4494]
[1723742608642,24.90823942,144.96,144.95,3.4492]
[1723742608848,28.35743942,144.96,144.92,0.0464685]
[1723742609249,28.35743942,144.96,144.93,3.4496]
[1723742612148,24.90823942,144.96,144.94,3.4495]
[1723742612349,24.90823942,144.96,144.92,0.0464685]
[1723742612849,24.90823942,144.96,144.94,3.4493]
[1723742613043,24.90823942,144.96,144.92,0.0464685]
[1723742613455,24.90823942,144.96,144.94,3.4493]
[1723742613654,24.90823942,144.96,144.92,0.0464685]
[1723742613855,24.86,144.94,144.92,0.0464685]
[1723742616053,24.86,144.94,144.93,3.4497]
[1723742617156,24.86,144.94,144.92,0.0464685]
[1723742617157,24.90823942,144.96,144.94,3.4494]
[1723742617959,24.90823942,144.96,144.95,3.4492]
[1723742618160,24.90823942,144.96,144.92,0.0464685]
[1723742618459,24.90823942,144.96,144.94,3.4494]
[1723742619157,24.90823942,144.96,144.95,3.4492]
[1723742620160,0.04823942,144.96,144.95,3.4492]
[1723742620361,0.04823942,144.96,144.94,3.4493]
[1723742620753,0.04823942,144.96,144.95,3.4492]
[1723742629678,19.88,144.99,144.98,3.4485]
[1723742630085,23.328,145.01,144.94,1.2766]
[1723742630376,19.88,144.99,144.94,1.2766]
[1723742630776,19.88,144.99,144.97,3.4487]
[1723742630980,0.05108182,144.98,144.97,3.4487]
[1723742636390,4.82,145.05,145.01,3.4477]
[1723742636691,24.7,145.05,144.96,19.88]
[1723742636988,28.147,145.05,145.01,3.4476]
[1723742637893,0.04580869,145.04,145.02,0.04601549]
[1723742638288,0.04580869,145.04,145.02,3.49351549]
[1723742639087,0.04580869,145.04,145.03,3.4473]
[1723742639288,0.04580869,145.04,145.03,4.697]
[1723742639488,28.1458,145.1,145.07,3.4463]
[1723742639696,23.3258,145.1,145.07,3.4463]
[1723742640187,23.3258,145.1,145.03,1.2497]
[1723742640188,19.88,145.1,145.08,3.4462]
[1723742640581,19.88,145.1,145.03,4.68222341]
[1723742640781,23.37277672,145.1,145.08,0.04560658]
[1723742641196,23.37277672,145.1,145.07,3.4463]
[1723742641394,23.37277672,145.1,145.08,0.04742986]
[1723742641793,19.92707672,145.1,145.08,0.04742986]
[1723742642685,0.04707672,145.1,145.09,3.4459]
[1723742644401,19.88,145.16,145.09,1.2958]
[1723742644602,19.88,145.18,145.1,1.2638]
[1723742644806,19.88,145.18,145.16,3.4442]
[1723742645305,3.4437,145.19,145.16,3.4442]
[1723742645610,19.88,145.17,145.16,0.04757655]
[1723742645911,19.88,145.17,145.1,1.2638]
[1723742646101,19.88,145.17,145.11,3.36847182]
[1723742647004,0.04554188,145.15,145.14,3.4447]
[1723742648006,19.88,145.17,145.16,3.4443]
[1723742648212,19.88,145.19,145.16,3.4443]
[1723742648400,19.88,145.19,145.13,0.04614435]
[1723742648600,19.88,145.19,145.11,23.36249965]
[1723742648806,19.88,145.19,145.12,4.74]
[1723742649006,19.88,145.19,145.17,3.4438]
[1723742649398,19.88,145.21,145.14,0.05200802]
[1723742649605,0.04360483,145.19,145.14,0.05200802]
[1723742650003,0.04360483,145.19,145.18,3.4438]
[1723742651808,0.04360483,145.19,145.17,3.48998604]
[1723742652011,0.04360483,145.19,145.17,0.04598604]
[1723742652604,0.04360483,145.19,145.18,3.4438]
[1723742654709,0.04360483,145.19,145.17,0.04598604]
[1723742655304,0.04360483,145.19,145.17,3.48988604]
[1723742655711,0.04360483,145.19,145.17,0.04598604]
[1723742656012,0.04360483,145.19,145.18,3.4438]
[1723742658619,0.04360483,145.19,145.17,3.48988604]
[1723742658821,0.04360483,145.19,145.17,0.04598604]
[1723742659312,0.04360483,145.19,145.18,3.4438]
[1723742663623,0.04360483,145.19,145.17,0.04598604]
[1723742664821,0.04360483,145.19,145.18,3.4438]
[1723742670422,0.04360483,145.19,145.17,0.04598604]
[1723742670825,0.04360483,145.19,145.18,3.4438]
[1723742672323,0.04360483,145.19,145.17,0.04598604]
[1723742673024,3.52482486,145.18,145.17,0.04598604]
[1723742673424,6.96862486,145.18,145.17,0.04598604]
[1723742674326,3.4446,145.15,145.09,19.88]
[1723742674524,19.88,145.17,145.09,19.88]
[1723742674929,3.4444,145.16,145.13,3.4449]
[1723742675127,3.4444,145.16,145.09,19.88]
[1723742675329,19.88,145.17,145.09,19.88]
[1723742675630,0.05161361,145.14,145.13,3.4448]
[1723742678929,0.05161361,145.14,145.12,3.4451]
[1723742679128,0.05161361,145.14,145.11,0.04584689]
[1723742679636,0.05161361,145.14,145.13,3.445]
[1723742680424,0.05161361,145.14,145.11,0.04584689]
[1723742681030,0.05161361,145.14,145.12,3.4451]
[1723742681334,0.05161361,145.14,145.11,0.04584689]
[1723742681536,0.05161361,145.14,145.13,3.445]
[1723742687534,0.05161361,145.14,145.12,3.4451]
[1723742688441,0.05161361,145.14,145.13,3.445]
[1723742688632,0.05161361,145.14,145.11,0.04584689]
[1723742688832,0.05161361,145.14,145.11,3.49114689]
[1723742689034,3.49641361,145.14,145.11,3.49114689]
[1723742689238,0.05161361,145.14,145.11,0.04584689]
[1723742690643,0.05161361,145.14,145.13,3.445]
[1723742692044,0.05161361,145.14,145.12,3.445]
[1723742692237,0.05161361,145.14,145.11,0.04584689]
[1723742694035,0.05161361,145.14,145.12,3.445]
[1723742696743,0.05161361,145.14,145.11,0.04584689]
[1723742696946,3.4452,145.12,145.11,0.04584689]
[1723742697142,23.3252,145.12,145.11,0.04584689]
[1723742697347,3.4452,145.12,145.11,0.04584689]
[1723742697542,28.0452,145.12,145.11,0.04584689]
[1723742701158,24.6,145.12,144.91,74.3907844]
[1723742701447,19.88,145.04,144.96,3.869]
[1723742701654,4.72,145.12,144.96,2.5077]
[1723742701655,19.88,145.02,144.96,2.5077]
[1723742701852,24.6,145.02,144.96,2.5077]
[1723742702054,28.0477,145.02,144.98,3.4485]
[1723742702248,0.04811549,145.0,144.98,3.49826677]
[1723742703356,0.04811549,145.0,144.99,3.4483]
[1723742703655,4.74,145.04,144.96,22.3877]
[1723742703845,3.4468,145.06,145.01,3.4476]
[1723742704255,24.62,145.07,144.96,22.3877]
[1723742704451,3.447,145.05,145.01,3.4478]
[1723742704843,0.05152125,145.03,145.01,3.4478]
[1723742705945,0.05152125,145.03,145.02,3.4476]
[1723742706148,0.05152125,145.03,145.0,0.04649049]
[1723742706346,0.05152125,145.03,145.0,3.49449049]
[1723742706649,0.05152125,145.03,145.0,0.04649049]
[1723742707052,0.05152125,145.03,145.0,3.49439049]
[1723742707453,0.05152125,145.03,145.0,0.04649049]
[1723742708761,0.05152125,145.03,145.02,3.4476]
[1723742710955,19.88,145.09,145.01,3.42136368]
[1723742711247,19.88,145.09,145.02,1.2311]
[1723742711757,19.88,145.08,145.02,1.2311]
[1723742712057,19.88,145.08,145.05,3.4467]
[1723742712257,19.88,145.08,145.04,0.05171641]
[1723742712258,0.05076268,145.06,145.04,0.05171641]
[1723742712558,19.93076268,145.06,145.04,0.05171641]
[1723742712963,23.37756268,145.06,145.04,0.05171641]
[1723742713356,19.93076268,145.06,145.04,0.05171641]
[1723742714259,3.4469,145.05,145.04,0.05171641]
[1723742717062,19.93076268,145.06,144.97,1.3502]
[1723742717363,19.88,145.01,144.97,1.3502]
[1723742717665,19.88,144.99,144.96,3.4488]
[1723742718154,19.88,145.01,144.94,1.2488]
[1723742718358,19.88,145.01,144.95,1.3502]
[1723742718560,4.72,145.02,144.99,3.4481]
[1723742719067,0.05002356,144.99,144.98,3.4485]
[1723742719366,24.6,145.05,144.96,19.92697337]
[1723742719562,24.6,145.05,144.96,19.88]
[1723742720157,3.4473,145.04,145.0,3.4479]
[1723742720556,0.05133105,145.02,144.99,0.04698681]
[1723742721267,0.05133105,145.02,144.99,3.49518681]
[1723742721268,19.88,145.01,144.99,3.49518681]
[1723742721871,19.88,145.0,144.99,0.04698681]
[1723742722162,3.4484,144.99,144.94,1.2488]
[1723742722370,24.6,145.0,144.94,4.6982]
[1723742722668,24.6,145.0,144.94,1.2488]
[1723742722967,3.4484,144.99,144.94,1.2488]
[1723742723170,0.04675512,144.98,144.96,0.04767169]
[1723742724364,0.04675512,144.98,144.96,3.49657169]
[1723742724570,0.04675512,144.98,144.96,0.04767169]
[1723742725865,3.49535512,144.98,144.96,0.04767169]
[1723742726065,0.04675512,144.98,144.96,0.04767169]
[1723742726472,3.49535512,144.98,144.96,0.04767169]
[1723742727573,3.4488,144.97,144.96,0.04767169]
[1723742729766,0.04675512,144.98,144.96,0.04767169]
[1723742730989,0.04675512,144.98,144.96,3.49667169]
[1723742731583,3.49535512,144.98,144.96,0.04767169]
[1723742732583,0.04675512,144.98,144.96,0.04767169]
[1723742733186,3.4488,144.97,144.96,0.04767169]
[1723742734998,3.49535512,144.98,144.96,0.04767169]
[1723742736387,0.04675512,144.98,144.96,3.49657169]
[1723742736691,0.04675512,144.98,144.96,0.04767169]
[1723742736989,0.04675512,144.98,144.97,3.4488]
[1723742738591,4.74,145.04,145.01,3.4478]
[1723742738897,19.88,145.06,144.97,3.4603963]
[1723742739088,19.88,145.06,145.02,3.4474]
[1723742739089,28.0668,145.06,145.02,3.4474]
[1723742739294,24.62,145.06,145.02,3.4474]
[1723742739500,19.88,145.04,145.02,3.4474]
[1723742739689,19.88,145.04,145.02,0.0473003]
[1723742739890,0.05250411,145.04,145.03,3.4473]
[1723742740388,0.05250411,145.04,145.02,3.4948003]
[1723742740994,0.05250411,145.04,145.02,0.0473003]
[1723742741189,19.93250411,145.04,145.02,0.0473003]
[1723742741390,19.93250411,145.04,144.99,1.3426]
[1723742741591,19.88,145.01,144.9,19.88]
[1723742741887,19.88,144.97,144.9,1.3426]
[1723742742192,19.88,144.97,144.95,3.4491]
[1723742742489,19.88,144.97,144.95,3.49473074]
[1723742742690,19.92693886,144.97,144.95,3.49473074]
[1723742744387,19.92693886,144.97,144.95,0.04563074]
[1723742744588,19.92693886,144.97,144.96,3.449]
[1723742744895,0.04693886,144.97,144.96,3.449]
[1723742750402,19.88,145.04,144.96,1.233]
[1723742750603,4.72,145.05,144.97,1.3114]
[1723742750793,19.88,145.04,144.97,1.3114]
[1723742750994,19.88,145.04,145.0,3.4479]
[1723742751205,23.3272,145.04,145.0,3.4479]
[1723742751400,19.88,145.04,145.02,3.4475]
[1723742751604,0.05050335,145.03,145.02,3.4475]
[1723742754706,3.4476,145.02,145.01,0.04642749]
[1723742754906,3.48320805,145.01,144.91,4.72]
[1723742755210,19.88,144.96,144.92,3.40451584]
[1723742755508,19.88,144.96,144.94,3.4493]
[1723742756000,19.92766209,144.96,144.95,3.4492]
[1723742756508,19.92766209,144.96,144.94,0.04904809]
[1723742756805,19.92766209,144.96,144.94,3.49834809]
[1723742757202,19.92766209,144.96,144.94,0.04904809]
[1723742757409,19.92766209,144.96,144.94,3.49854809]
[1723742757600,0.04766209,144.96,144.94,0.04904809]
[1723742758007,0.04766209,144.96,144.95,3.4492]
[1723742758207,0.04766209,144.96,144.94,0.04904809]
[1723742758604,0.04766209,144.96,144.95,3.4492]
[1723742762408,0.04766209,144.96,144.95,6.85231896]
[1723742763002,0.04766209,144.96,144.95,3.4492]
[1723742763307,0.04766209,144.96,144.95,6.85221313]
[1723742763507,0.04766209,144.96,144.94,0.04904809]
[1723742764305,0.04766209,144.96,144.95,3.40392132]
[1723742765313,0.04766209,144.96,144.94,0.04904809]
[1723742765615,0.04766209,144.96,144.95,3.40479937]
[1723742766704,0.04766209,144.96,144.95,6.85399937]
[1723742767311,0.04766209,144.96,144.95,6.85294975]
[1723742767507,0.04766209,144.96,144.95,3.40374975]
[1723742768917,0.04766209,144.96,144.95,6.85294975]
[1723742771116,0.04766209,144.96,144.95,3.4492]
[1723742771319,0.04766209,144.96,144.95,6.85343081]
[1723742771608,0.04766209,144.96,144.95,3.40423081]
[1723742772715,3.49666209,144.96,144.95,3.40423081]
[1723742772913,23.37666209,144.96,144.95,3.40423081]
[1723742774018,3.4492,144.95,144.94,0.04904809]
[1723742774315,3.4492,144.95,144.94,3.45519931]
[1723742774516,23.37686209,144.96,144.94,3.45519931]
[1723742774708,23.37686209,144.96,144.94,0.04904809]
[1723742775511,19.92766209,144.96,144.94,0.04904809]
[1723742775816,0.04766209,144.96,144.95,6.51014685]
[1723742776014,0.04766209,144.96,144.95,3.06094685]
[1723742777120,0.04766209,144.96,144.95,6.51014685]
[1723742778318,0.04766209,144.96,144.95,3.06094685]
[1723742778519,0.04766209,144.96,144.94,0.04904809]
[1723742778713,0.04766209,144.96,144.95,3.06095762]
[1723742782816,0.04766209,144.96,144.95,6.51015762]
[1723742784523,0.04766209,144.96,144.95,15.26968774]
[1723742786222,0.04766209,144.96,144.95,6.50829817]
[1723742786424,0.04766209,144.96,144.95,15.26772081]
[1723742790025,0.04766209,144.96,144.95,15.26647394]
[1723742790421,0.04766209,144.96,144.95,11.81727394]
[1723742791129,0.04766209,144.96,144.95,15.26647394]
[1723742791723,0.04766209,144.96,144.95,11.81727394]
[1723742792832,0.04766209,144.96,144.95,3.05817078]
[1723742793131,0.04766209,144.96,144.95,6.50737078]
[1723742793831,0.04766209,144.96,144.95,3.05817078]
[1723742794129,0.04766209,144.96,144.94,0.04904809]
[1723742794338,19.88,144.95,144.94,0.04904809]
[1723742794626,23.3292,144.95,144.94,0.04904809]
[1723742794937,19.88,144.95,144.91,3.4501]
[1723742795127,19.88,144.95,144.92,2.75955056]
[1723742795325,19.88,144.95,144.91,3.4501]
[1723742795526,19.88,144.95,144.92,2.76024298]
[1723742795729,19.88,144.95,144.91,3.4501]
[1723742796027,19.88,144.95,144.92,2.81240348]
[1723742796226,19.88,144.95,144.92,0.05216229]
[1723742796427,23.3294,144.95,144.92,0.05216229]
[1723742796623,19.88,144.95,144.92,0.05216229]
[1723742797236,3.49666209,144.96,144.93,3.4497]
[1723742797435,23.37666209,144.96,144.93,3.4497]
[1723742798634,23.37666209,144.96,144.92,0.05216229]
[1723742798635,23.37666209,144.96,144.94,6.20651426]
[1723742798834,23.37666209,144.96,144.94,3.4495]
[1723742799332,0.04766209,144.96,144.95,3.4492]
[1723742799828,0.04766209,144.96,144.95,6.20480007]
[1723742800223,0.04766209,144.96,144.95,14.9662369]
[1723742800424,0.04766209,144.96,144.95,16.2307369]
[1723742800622,4.72,145.01,144.95,12.7815369]
[1723742800833,24.6,145.01,144.96,11.5170369]
[1723742801032,24.6,145.01,144.96,8.76143683]
[1723742801234,24.6,145.01,144.97,2.74998304]
[1723742801536,24.6,145.01,144.99,3.4481]
[1723742801829,0.05017134,145.0,144.99,3.4481]
[1723742802034,0.05017134,145.0,144.99,6.19785091]
[1723742802636,0.05017134,145.0,144.98,0.04538421]
[1723742803229,0.05017134,145.0,144.98,3.49378421]
[1723742803730,0.05017134,145.0,144.99,3.4483]
[1723742804231,0.05017134,145.0,144.99,6.19786458]
[1723742804438,0.05017134,145.0,144.99,14.95704049]
[1723742804737,0.05017134,145.0,144.99,6.19786458]
[1723742806027,0.05017134,145.0,144.99,6.196883]
[1723742810239,24.6,145.05,145.02,3.4476]
[1723742810440,24.6,145.05,144.99,8.7581594]
[1723742810736,28.047,145.05,145.01,3.4477]
[1723742811243,28.047,145.05,144.95,4.78073798]
[1723742811244,19.88,145.03,144.98,8.7581594]
[1723742811440,19.88,145.03,145.02,0.04784616]
[1723742811740,19.88,145.03,145.01,0.0479992]
[1723742811941,19.88,145.03,145.0,3.4479]
[1723742812145,19.88,145.03,145.01,2.74667736]
[1723742812337,19.88,145.03,144.99,0.05314494]
[1723742812537,0.04578083,145.02,145.0,6.19457735]
[1723742812741,0.04578083,145.02,145.01,2.74667735]
[1723742813546,0.04578083,145.02,145.01,2.74667734]
[1723742814147,0.04578083,145.02,145.01,6.19447734]
[1723742815252,0.04578083,145.02,145.01,2.74667734]
[1723742816859,0.04578083,145.02,144.99,3.50134494]
[1723742817151,0.04578083,145.02,145.0,2.74698064]
[1723742817152,19.88,145.01,145.0,2.74698064]
[1723742817365,19.88,145.01,145.0,2.74686182]
[1723742817865,19.88,145.01,145.0,2.74688006]
[1723742818460,19.88,145.01,145.0,6.19482097]
[1723742818763,0.04578083,145.02,145.0,2.74672097]
[1723742819062,0.04578083,145.02,145.01,6.19452097]
[1723742819457,0.04578083,145.02,145.01,6.19444534]
[1723742820960,24.6,145.05,145.04,3.4471]
[1723742821154,19.88,145.05,145.04,3.4471]
[1723742823570,0.04415981,145.06,145.05,3.4469]
[1723742823755,0.04415981,145.06,145.05,6.18916148]
[1723742824162,0.04415981,145.06,145.05,3.4469]
[1723742824465,0.04415981,145.06,145.05,6.18804544]
[1723742828568,0.04415981,145.06,145.05,2.74114544]
[1723742828868,0.04415981,145.06,145.03,0.04389931]
[1723742829053,0.04415981,145.06,145.05,3.4469]
[1723742829256,0.04415981,145.06,145.05,6.18634685]
[1723742829457,0.04415981,145.06,145.05,3.4469]
[1723742831368,0.04415981,145.06,145.04,3.447]
[1723742831754,0.04415981,145.06,145.05,3.4469]
[1723742835864,7.98415981,145.06,145.05,3.4469]
[1723742836371,7.98415981,145.06,145.03,0.04389931]
[1723742836763,7.98415981,145.06,145.03,2.78293242]
[1723742837067,7.98415981,145.06,145.05,3.4469]
[1723742837270,7.98415981,145.06,145.03,0.04389931]
[1723742837471,7.98415981,145.06,145.04,3.4469]
[1723742837865,7.98415981,145.06,145.03,0.04389931]
[1723742838271,7.98415981,145.06,145.03,2.78320241]
[1723742838472,7.98415981,145.06,145.05,3.4469]
[1723742840773,0.04415981,145.06,145.05,3.4469]
[1723742844376,8.1655,145.11,145.08,3.4462]
[1723742844682,7.94,145.09,145.08,3.4462]
[1723742844877,7.94,145.09,145.07,3.4462]
[1723742845077,7.94,145.08,145.07,3.4462]
[1723742846786,7.94,145.08,145.06,3.49028059]
[1723742849786,7.94,145.08,145.07,3.4464]
[1723742850990,7.9853385,145.09,145.08,3.4462]
[1723742851376,7.9853385,145.09,145.06,0.04378059]
[1723742851582,7.94,145.07,145.06,0.04378059]
[1723742854177,7.94,145.08,145.06,3.49038059]
[1723742854376,7.94,145.08,145.06,0.04378059]
[1723742854584,7.9853385,145.09,145.08,3.4462]
[1723742856785,0.0453385,145.09,145.08,3.4462]
[1723742863794,7.94,145.11,145.1,3.4457]
[1723742864391,4.72,145.17,145.1,3.4455]
[1723742864595,7.94,145.16,145.08,7.94]
[1723742864788,7.94,145.16,145.1,7.94]
[1723742864993,0.0516917,145.13,145.12,3.4452]
[1723742865195,7.94,145.17,145.11,3.53166634]
[1723742865394,7.94,145.17,145.11,3.48035489]
[1723742865695,7.94,145.17,145.12,2.72723955]
[1723742866001,7.94,145.17,145.12,3.39430894]
[1723742866295,7.94,145.17,145.16,3.4443]
[1723742867291,0.8148,145.27,145.13,12.79983642]
[1723742867292,4.7,145.25,145.13,12.79983642]
[1723742867486,4.7,145.25,145.14,2.72079155]
[1723742867487,7.94,145.2,145.14,2.72079155]
[1723742867691,7.94,145.2,145.19,3.4435]
[1723742867992,4.7,145.25,145.19,3.4435]
[1723742868299,7.94,145.2,145.19,3.4435]
[1723742869893,7.94,145.2,145.18,0.05298944]
[1723742870200,7.94,145.19,145.18,0.05298944]
[1723742870592,7.94,145.19,145.18,3.49678944]
[1723742872796,7.94,145.2,145.19,3.4434]
[1723742873794,7.94,145.2,145.18,3.49668944]
[1723742873999,7.94,145.19,145.18,3.49668944]
[1723742874501,7.94,145.19,145.18,0.05298944]
[1723742875292,16.12429129,145.19,145.04,6.8942]
[1723742875494,7.94,145.12,145.08,1.3154]
[1723742876004,7.94,145.11,145.08,1.3154]
[1723742876203,7.94,145.11,145.09,3.4457]
[1723742876499,7.98407339,145.11,145.09,3.4457]
[1723742877501,0.04407339,145.11,145.08,1.36038211]
[1723742877894,0.04407339,145.11,145.09,3.4459]
[1723742878704,0.04407339,145.11,145.1,3.4457]
[1723742883012,7.98407339,145.11,145.08,0.04498211]
[1723742883904,7.98407339,145.11,145.09,3.4458]
[1723742885009,7.98407339,145.11,145.08,3.49108211]
[1723742886516,7.98407339,145.11,145.08,0.04498211]
[1723742886905,7.94,145.09,145.08,0.04498211]
[1723742890215,7.94,145.1,145.08,3.49118211]
[1723742891613,7.94,145.1,145.08,0.04498211]
[1723742892307,7.94,145.09,145.08,0.04498211]
[1723742894918,3.48967339,145.11,145.08,3.49108211]
[1723742894919,0.04407339,145.11,145.08,3.49108211]
[1723742897019,3.48947339,145.11,145.08,3.49108211]
[1723742897318,7.94,145.1,145.08,3.49108211]
[1723742897914,7.94,145.1,145.09,3.4459]
[1723742898123,7.98407339,145.11,145.09,3.4459]
[1723742898513,7.98407339,145.11,145.1,3.4457]
[1723742898715,7.98407339,145.11,145.08,0.04498211]
[1723742898916,7.98407339,145.11,145.09,3.4458]
[1723742899310,7.98407339,145.11,145.08,0.04498211]
[1723742899510,0.04407339,145.11,145.08,0.04498211]
[1723742899720,0.04407339,145.11,145.1,3.4457]
[1723742902314,0.04407339,145.11,145.1,6.17568162]
[1723742902813,0.04407339,145.11,145.1,3.4457]
[1723742907118,0.04407339,145.11,145.09,3.4458]
[1723742907319,0.04407339,145.11,145.08,1.36208211]
[1723742907714,0.04407339,145.11,145.09,3.4457]
[1723742908119,0.04407339,145.11,145.08,1.36208211]
[1723742909719,0.04407339,145.11,145.1,3.4457]
[1723742911025,0.04407339,145.11,145.09,3.4458]
[1723742911427,7.94,145.1,145.08,0.04498211]
[1723742911821,7.98407339,145.11,145.08,0.04498211]
[1723742912320,7.98407339,145.11,145.09,3.4459]
[1723742913122,7.98407339,145.11,145.08,0.04498211]
[1723742913619,7.98407339,145.11,145.09,3.4459]
[1723742914318,7.94,145.1,145.08,0.04498211]
[1723742915319,0.04407339,145.11,145.08,0.04498211]
[1723742916518,0.04407339,145.11,145.09,3.4458]
[1723742918425,7.98407339,145.11,145.09,3.4458]
[1723742920024,7.98407339,145.11,145.1,3.4457]
[1723742920721,7.98407339,145.11,145.09,3.4458]
[1723742920920,7.98407339,145.11,145.08,0.04498211]
[1723742921129,0.04407339,145.11,145.1,3.4457]
[1723742921621,0.04407339,145.11,145.1,6.17676071]
[1723742922023,0.04407339,145.11,145.1,4.733]